bitfinex-derivatives/quotes_ETHF0:USTF0_20250804
["timestamp","ask_amount","ask_price","bid_price","bid_amount"]
[1754311327834,1.8679,3563.3,3563.2,0.77975]
[1754311328036,1.8679,3563.3,3563.2,1.07675]
[1754311328239,0.7552,3563.3,3563.1,0.56126]
[1754311328542,1.8679,3563.2,3563.1,2.43076]
[1754311329029,1.8679,3563.2,3563.1,1.8695]
[1754311331638,0.7552,3563.2,3563.0,0.56128]
[1754311331840,20.944,3563.1,3563.0,1.84498]
[1754311332040,20.944,3563.1,3563.0,0.76708]
[1754311332240,20.944,3563.1,3563.0,2.39268]
[1754311334445,19.139,3563.1,3563.0,2.39268]
[1754311334742,20.944,3563.1,3563.0,2.39268]
[1754311338946,20.939,3563.1,3563.0,2.39268]
[1754311341240,20.939,3563.1,3563.0,0.56128]
[1754311341841,20.939,3563.1,3563.0,2.39268]
[1754311343343,19.8565,3563.1,3563.0,2.39268]
[1754311343545,19.134,3563.1,3563.0,2.39268]
[1754311343740,20.939,3563.1,3563.0,1.29948]
[1754311343946,20.939,3563.1,3563.0,2.39268]
[1754311344445,20.939,3563.1,3563.0,0.56128]
[1754311344748,20.939,3563.1,3563.0,2.39268]
[1754311345043,19.134,3563.1,3563.0,2.39268]
[1754311345345,20.939,3563.1,3563.0,0.56128]
[1754311345542,20.939,3563.1,3563.0,1.29948]
[1754311345741,20.939,3563.1,3563.0,2.39268]
[1754311346644,1.805,3563.5,3563.4,2.39262]
[1754311346848,20.93,3563.5,3563.4,2.39262]
[1754311347050,0.56122,3563.4,3563.3,0.56123]
[1754311347249,2.36622,3563.4,3563.3,0.56123]
[1754311347640,0.56125,3563.3,3563.2,0.56124]
[1754311347849,21.49225,3563.3,3563.2,0.56124]
[1754311348145,20.931,3563.3,3563.2,2.39264]
[1754311348346,3.9303,3563.6,3563.5,0.98201]
[1754311348646,24.1488,3563.6,3563.5,2.39261]
[1754311348950,24.1488,3563.6,3563.5,1.8314]
[1754311349149,22.3438,3563.6,3563.5,1.8314]
[1754311349347,23.3886,3563.6,3563.5,1.8314]
[1754311349646,23.3886,3563.6,3563.4,0.56121]
[1754311349647,0.56121,3563.5,3563.4,0.56121]
[1754311349851,1.28373,3563.4,3563.3,1.29943]
[1754311350046,21.50823,3563.4,3563.2,0.56125]
[1754311350348,1.92196,3563.2,3563.1,0.56126]
[1754311350551,21.50826,3563.2,3563.1,1.84496]
[1754311351051,20.947,3563.2,3563.1,0.56126]
[1754311351248,20.947,3563.2,3563.1,1.09976]
[1754311352050,20.947,3563.2,3563.1,1.63216]
[1754311352347,20.0946,3563.2,3563.1,2.39266]
[1754311352652,20.947,3563.2,3563.1,2.39266]
[1754311352847,4.6975,3563.6,3563.5,0.7382]
[1754311353053,24.1528,3563.6,3563.5,1.8314]
[1754311354153,5.0128,3563.6,3563.5,1.8314]
[1754311354341,24.1578,3563.6,3563.5,1.8314]
[1754311354649,24.1578,3563.6,3563.5,0.3174]
[1754311354952,1.3607,3563.2,3563.1,0.76707]
[1754311355251,20.95,3563.2,3563.1,0.76707]
[1754311355845,20.95,3563.2,3563.1,1.29947]
[1754311356048,20.95,3563.2,3563.1,2.39267]
[1754311357049,19.145,3563.2,3563.1,2.39267]
[1754311357352,0.7225,3563.5,3563.4,2.39262]
[1754311357649,1.805,3563.5,3563.4,2.39262]
[1754311357850,19.8675,3563.5,3563.4,2.39262]
[1754311358455,20.95,3563.5,3563.4,2.39262]
[1754311359054,0.4252,3563.1,3563.0,5.0392]
[1754311359353,0.4252,3563.1,3563.0,4.7065]
[1754311359354,20.95,3563.1,3563.0,4.7065]
[1754311359954,20.95,3563.1,3563.0,5.60049]
[1754311362450,20.95,3563.1,3563.0,4.81969]
[1754311362657,20.95,3563.1,3563.0,1.29949]
[1754311363153,20.95,3563.1,3563.0,0.56129]
[1754311364658,1.30509,3563.0,3562.9,0.7167]
[1754311364957,1.30509,3563.0,3562.9,1.4722]
[1754311365253,1.8335,3563.0,3562.9,2.365]
[1754311369564,0.7438,3563.0,3562.9,2.365]
[1754311369859,19.145,3563.1,3563.0,1.8037]
[1754311370060,19.145,3563.1,3563.0,5.0115]
[1754311371356,1.8335,3563.4,3563.3,0.56124]
[1754311371561,19.8928,3563.4,3563.3,2.36494]
[1754311372362,20.9825,3563.4,3563.3,2.36494]
[1754311373859,3.2078,3563.6,3563.5,0.56121]
[1754311374063,25.06150683,3563.6,3563.5,2.36491]
[1754311375152,21.85370683,3563.6,3563.5,2.36491]
[1754311375557,21.53740683,3563.6,3563.5,2.36491]
[1754311376064,21.85370683,3563.6,3563.5,2.36491]
[1754311376561,21.85370683,3563.6,3563.5,2.03341]
[1754311376864,21.85370683,3563.6,3563.5,1.27791]
[1754311377065,21.85370683,3563.6,3563.5,0.77541]
[1754311377362,21.85370683,3563.6,3563.5,0.56121]
[1754311377967,21.85370683,3563.6,3563.5,2.36491]
[1754311378360,20.76400683,3563.6,3563.5,2.36491]
[1754311378566,1.40100683,3563.6,3563.5,2.36491]
[1754311378762,0.65999321,3563.6,3563.5,2.36491]
[1754311378965,0.5258,3563.6,3563.5,2.36491]
[1754311379264,19.3448,3563.6,3563.5,2.36491]
[1754311379454,19.138,3563.6,3563.5,2.36491]
[1754311380053,19.3448,3563.6,3563.5,2.36491]
[1754311380456,20.9715,3563.6,3563.5,2.36491]
[1754311381158,20.9705,3563.6,3563.5,2.36491]
[1754311381965,20.9705,3563.6,3563.5,0.56121]
[1754311382165,0.4248,3563.5,3563.1,0.7706]
[1754311382356,1.8335,3563.2,3563.1,2.36497]
[1754311382558,20.9665,3563.2,3563.1,0.56127]
[1754311382761,20.9665,3563.2,3563.1,1.27797]
[1754311382958,19.9181,3563.2,3563.1,2.36497]
[1754311383168,19.3398,3563.2,3563.1,2.36497]
[1754311383361,20.3429,3563.2,3563.1,2.36497]
[1754311383566,20.9665,3563.2,3563.1,2.36497]
[1754311383962,19.133,3563.2,3563.1,2.36497]
[1754311384163,19.6588,3563.2,3563.1,2.36497]
[1754311384368,20.9665,3563.2,3563.1,2.36497]
[1754311384561,20.9665,3563.2,3563.1,1.27797]
[1754311385062,20.9665,3563.2,3563.1,0.56127]
[1754311387368,20.9665,3563.2,3563.1,0.77547]
[1754311387665,20.3429,3563.2,3563.1,2.36497]
[1754311389366,20.9665,3563.2,3563.1,0.56127]
[1754311390165,20.9665,3563.2,3563.0,0.56127]
[1754311390166,2.38957,3563.1,3563.0,0.56127]
[1754311390369,1.8283,3563.1,3563.0,0.56127]
[1754311392269,1.8283,3563.1,3563.0,2.34717]
[1754311392465,19.8687,3563.1,3563.0,2.34717]
[1754311392873,20.9743,3563.1,3563.0,2.34717]
[1754311394063,20.9743,3563.1,3563.0,1.26167]
[1754311394470,20.9743,3563.1,3563.0,0.97157]
[1754311394870,20.9743,3563.1,3563.0,1.26167]
[1754311395076,19.146,3563.1,3563.0,2.34717]
[1754311395376,19.3539,3563.1,3563.0,2.34717]
[1754311395675,1.8283,3563.3,3563.2,2.34715]
[1754311395872,21.10146625,3563.3,3563.2,2.34715]
[1754311396069,21.84320384,3563.3,3563.2,2.34715]
[1754311396567,21.70903759,3563.3,3563.2,2.34715]
[1754311398574,20.9673,3563.3,3563.2,2.34715]
[1754311398869,20.60242787,3563.3,3563.2,2.34715]
[1754311399070,21.06572787,3563.3,3563.2,2.34715]
[1754311399274,21.70802787,3563.3,3563.2,2.34715]
[1754311401378,1.8283,3563.3,3563.2,2.34715]
[1754311401673,20.9623,3563.3,3563.2,2.34715]
[1754311407079,0.56121,3563.5,3563.4,0.56122]
[1754311407283,22.39368261,3563.5,3563.4,2.34712]
[1754311407686,21.83247261,3563.5,3563.4,2.34712]
[1754311407884,2.70547261,3563.5,3563.4,2.34712]
[1754311408087,20.72387261,3563.5,3563.4,2.34712]
[1754311408288,21.69397239,3563.5,3563.4,2.34712]
[1754311409688,21.69397239,3563.5,3563.4,1.26162]
[1754311411189,21.69397239,3563.5,3563.4,0.77202]
[1754311411587,1.8283,3563.3,3563.2,0.844]
[1754311411789,20.9493,3563.3,3563.2,0.2108]
[1754311411992,20.9493,3563.3,3563.2,0.56124]
[1754311411993,21.51055,3563.3,3563.2,0.56124]
[1754311413792,2.38957,3563.2,3563.1,0.56126]
[1754311414091,2.38957,3563.2,3563.1,0.7004]
[1754311414294,2.38957,3563.2,3563.0,3.76907]
[1754311414490,20.9453,3563.1,3563.0,3.76907]
[1754311414693,20.9453,3563.1,3563.0,3.2078]
[1754311415094,1.28399,3563.0,3562.9,0.5613]
[1754311415293,2.38959,3563.0,3562.9,0.5613]
[1754311416295,2.38959,3563.0,3562.9,0.7721]
[1754311416696,2.38959,3563.0,3562.9,0.5613]
[1754311417297,2.38959,3563.0,3562.9,0.7721]
[1754311417694,2.38959,3563.0,3562.9,1.566]
[1754311417993,1.8283,3563.0,3562.9,2.3472]
[1754311420797,1.8283,3563.0,3561.5,0.279861]
[1754311420798,0.5614,3562.3,3562.2,0.56141]
[1754311420994,2.36722,3562.2,3562.0,3.2078]
[1754311421195,20.9328,3562.1,3562.0,3.2078]
[1754311421394,20.9328,3562.1,3562.0,3.76924]
[1754311421794,20.9328,3562.1,3562.0,5.60084]
[1754311422395,20.9328,3562.1,3562.0,3.76924]
[1754311423394,20.9328,3562.1,3562.0,3.98524]
[1754311423594,20.9328,3562.1,3562.0,5.60084]
[1754311427300,19.782,3562.1,3562.0,5.60084]
[1754311427491,1.0632,3562.1,3562.0,5.60084]
[1754311427699,41.169,3562.8,3562.7,1.60353]
[1754311427897,60.6169,3562.8,3562.7,2.39293]
[1754311428301,59.9802,3562.8,3562.2,1.40353]
[1754311428599,1.8058,3562.5,3562.4,2.39298]
[1754311428800,20.9468,3562.5,3562.4,2.39298]
[1754311433101,0.56138,3562.4,3562.3,0.56139]
[1754311433301,2.36718,3562.4,3562.3,0.56139]
[1754311433500,1.8058,3562.4,3562.3,0.56139]
[1754311433697,19.141,3562.5,3562.3,2.39299]
[1754311433900,1.8058,3562.4,3562.3,2.39299]
[1754311443113,1.0799,3562.4,3562.3,1.66039]
[1754311443315,1.8058,3562.4,3562.3,2.39299]
[1754311444915,20.9258,3562.4,3562.3,2.39299]
[1754311446522,1.8058,3562.4,3562.3,2.39299]
[1754311446920,20.2009,3562.4,3562.3,1.66039]
[1754311448014,1.0799,3562.4,3562.3,1.66039]
[1754311448220,20.2009,3562.4,3562.3,1.66039]
[1754311449018,19.121,3562.4,3562.3,0.56139]
[1754311462527,3.2078,3562.7,3562.5,0.56136]
[1754311462726,19.99753907,3562.6,3562.5,0.56136]
[1754311463220,0.87853907,3562.6,3562.5,0.56136]
[1754311463627,19.99753907,3562.6,3562.5,0.56136]
[1754311464029,20.55889907,3562.6,3562.4,0.56138]
[1754311464328,19.68036,3562.6,3562.4,0.56138]
[1754311465230,19.119,3562.6,3562.4,0.56138]
[1754311465928,3.76914,3562.7,3562.6,0.56135]
[1754311466128,0.13694454,3562.7,3562.6,3.76915]
[1754311466327,19.25594454,3562.7,3562.6,3.76915]
[1754311466528,19.25592402,3562.7,3562.6,3.76915]
[1754311466930,19.8202,3562.7,3562.6,5.53245]
[1754311467528,20.8411,3562.7,3562.6,5.53245]
[1754311468225,20.8411,3562.7,3562.6,5.32825]
[1754311468431,20.8411,3562.7,3562.6,0.56135]
[1754311469332,20.8411,3562.7,3562.6,2.32465]
[1754311470948,5.49119,3563.0,3562.9,2.3246]
[1754311471146,24.92637569,3563.0,3562.9,2.3246]
[1754311472949,24.92637569,3563.0,3562.9,0.5613]
[1754311473248,5.80837569,3563.0,3562.9,0.5613]
[1754311473437,24.92637569,3563.0,3562.9,0.5613]
[1754311473842,5.80837569,3563.0,3562.9,0.5613]
[1754311474041,1.2625,3562.9,3562.8,0.56131]
[1754311474249,3.02491469,3562.9,3562.8,0.56131]
[1754311474850,21.58161469,3562.9,3562.8,0.56131]
[1754311475251,2.46361469,3562.9,3562.8,0.56131]
[1754311475451,21.58161469,3562.9,3562.8,0.56131]
[1754311475848,2.46361469,3562.9,3562.8,0.56131]
[1754311476042,21.58061469,3562.9,3562.8,0.56131]
[1754311476649,0.76904,3562.8,3562.7,0.56132]
[1754311476851,0.56135,3562.7,3562.6,0.56134]
[1754311477154,21.40045,3562.7,3562.6,0.56134]
[1754311478053,21.40045,3562.7,3562.6,0.86824]
[1754311478554,20.8391,3562.7,3562.6,2.32464]
[1754311478749,20.8391,3562.7,3562.6,0.56134]
[1754311479149,20.8391,3562.7,3562.6,0.87704]
[1754311479345,20.8391,3562.7,3562.6,1.18394]
[1754311479652,20.8391,3562.7,3562.6,1.83334]
[1754311480654,20.8391,3562.7,3562.6,2.32464]
[1754311482857,20.97607817,3562.7,3562.6,2.32464]
[1754311483157,21.72153329,3562.7,3562.6,2.32464]
[1754311485458,21.72153329,3562.7,3562.6,1.7633]
[1754311486259,1.29035,3562.6,3562.5,0.56135]
[1754311486561,3.11290512,3562.6,3562.5,0.56135]
[1754311486962,3.11290512,3562.6,3562.5,2.30935]
[1754311487360,2.55155512,3562.6,3562.5,2.30935]
[1754311490263,1.8061,3562.5,3562.4,0.56136]
[1754311490465,21.66755512,3562.5,3562.4,0.56136]
[1754311491757,21.80439477,3562.5,3562.4,0.56136]
[1754311492764,2.36751,3562.3,3562.2,0.5614]
[1754311492963,21.48351,3562.3,3562.2,0.5614]
[1754311493665,20.9221,3562.3,3562.2,0.5614]
[1754311493862,21.48351,3562.3,3562.1,0.56142]
[1754311494061,1.8061,3562.2,3562.1,0.56142]
[1754311495166,1.8061,3562.2,3562.1,1.81132]
[1754311495564,1.8061,3562.2,3562.1,2.30942]
[1754311500067,0.2045,3562.2,3562.1,2.30942]
[1754311500266,0.5189,3562.2,3562.1,2.30942]
[1754311500567,1.8061,3562.2,3562.1,2.30942]
[1754311500970,3.2078,3562.6,3562.5,1.748]
[1754311501272,23.20705286,3562.6,3562.5,1.748]
[1754311501776,0.74545714,3562.6,3562.5,1.748]
[1754311502072,0.13677267,3562.8,3562.7,1.748]
[1754311502270,19.5925,3562.8,3562.7,1.748]
[1754311502471,21.05987267,3562.8,3562.7,1.748]
[1754311502666,21.05987267,3562.8,3562.2,1.40353]
[1754311502667,1.4917,3562.6,3562.5,0.56135]
[1754311502872,0.97603,3562.1,3562.0,0.56144]
[1754311503074,21.48453,3562.1,3562.0,1.82254]
[1754311503370,21.48453,3562.1,3562.0,2.30944]
[1754311503676,20.9231,3562.1,3562.0,2.30944]
[1754311504071,20.9231,3562.1,3562.0,1.748]
[1754311504266,20.9231,3562.1,3562.0,0.1959]
[1754311504567,0.729,3561.8,3561.7,1.5512]
[1754311504766,19.846,3561.8,3561.7,1.748]
[1754311505173,20.9231,3561.8,3561.7,1.748]
[1754311505370,20.9231,3561.8,3561.5,3.2078]
[1754311505371,1.29051,3561.6,3561.5,3.2078]
[1754311505568,21.48461,3561.6,3561.5,3.2078]
[1754311506465,0.56154,3561.4,3561.3,1.054]
[1754311506670,21.48464,3561.4,3561.3,1.4481]
[1754311507269,21.48464,3561.4,3561.3,1.748]
[1754311508872,20.9231,3561.4,3561.3,1.748]
[1754311510665,1.7727,3561.1,3561.0,4.9904]
[1754311510864,20.8907,3561.1,3561.0,4.9904]
[1754311512978,20.8907,3561.1,3561.0,1.7826]
[1754311513273,1.7727,3560.9,3560.8,0.7018]
[1754311513570,1.07173,3560.8,3560.7,0.4619]
[1754311513776,2.33433,3560.8,3560.7,0.4619]
[1754311514171,2.33433,3560.8,3560.7,0.7797]
[1754311514367,0.56168,3560.5,3560.3,0.5617]
[1754311514568,1.7727,3560.3,3560.2,3.9096]
[1754311515080,1.7727,3560.3,3560.2,4.9904]
[1754311515977,19.119,3560.4,3560.3,1.26351]
[1754311516177,19.119,3560.4,3560.3,2.34431]
[1754311516369,0.56164,3560.8,3560.5,1.3207]
[1754311516681,0.56164,3560.8,3560.6,2.34425]
[1754311516874,19.121,3560.7,3560.6,0.7018]
[1754311517175,2.33425,3561.3,3561.2,1.4815]
[1754311517382,21.5916068,3561.3,3561.2,1.7826]
[1754311517679,21.45525,3561.3,3561.2,0.1989]
[1754311518481,3.2078,3561.5,3561.4,0.7018]
[1754311518669,3.2078,3561.5,3561.4,1.7826]
[1754311518875,40.429,3561.7,3561.6,1.3207]
[1754311519175,40.429,3561.7,3561.6,1.7826]
[1754311519176,59.551,3561.7,3561.6,1.7826]
[1754311519681,40.429,3561.7,3561.6,1.7826]
[1754311519874,59.551,3561.7,3561.6,1.7826]
[1754311520074,60.6027,3561.7,3561.6,1.7826]
[1754311520274,60.0105,3561.7,3561.6,1.7826]
[1754311520577,59.551,3561.7,3561.6,1.7826]
[1754311521481,60.6027,3561.7,3561.6,1.7826]
[1754311521675,61.16419,3561.7,3561.6,1.3207]
[1754311521875,1.3132,3561.5,3561.4,2.34413]
[1754311522070,20.8947,3561.5,3561.4,2.34413]
[1754311523180,40.429,3561.7,3561.6,2.34411]
[1754311523480,0.5082,3562.2,3562.1,2.34403]
[1754311523679,19.6302,3562.2,3562.1,2.34403]
[1754311523880,20.8947,3562.2,3562.1,2.34403]
[1754311524776,19.121,3562.2,3562.1,2.34403]
[1754311527077,1.0517,3562.5,3562.3,0.5614]
[1754311527281,1.1805,3562.6,3562.5,1.7826]
[1754311527486,20.8927,3562.6,3562.5,1.7826]
[1754311527982,20.8927,3562.6,3562.5,2.34396]
[1754311532391,19.119,3562.6,3562.5,2.34396]
[1754311532893,20.8917,3562.6,3562.5,2.34396]
[1754311533390,19.84,3562.6,3562.5,2.34396]
[1754311533590,20.8917,3562.6,3562.5,2.34396]
[1754311536688,40.434,3562.7,3562.5,2.34396]
[1754311536885,19.117,3562.6,3562.5,2.34396]
[1754311537889,19.3279,3562.6,3562.5,2.34396]
[1754311538192,20.8897,3562.6,3562.5,2.34396]
[1754311542300,20.8887,3562.6,3562.5,2.34396]
[1754311542502,20.8887,3562.6,3562.5,0.56136]
[1754311542698,0.3949,3562.0,3561.9,3.6247]
[1754311542898,0.7061,3561.8,3561.7,0.56148]
[1754311543103,20.8725,3561.8,3561.7,0.56148]
[1754311543304,1.26759,3561.7,3561.6,0.76479]
[1754311543503,1.7575,3561.7,3561.6,0.76479]
[1754311543809,1.7575,3561.7,3561.6,2.32849]
[1754311550113,4.61133,3562.3,3561.4,3.2078]
[1754311550114,0.7061,3562.2,3562.1,1.06053]
[1754311550308,20.5598,3562.2,3562.1,2.32843]
[1754311550507,20.8735,3562.2,3562.1,2.32843]
[1754311551111,21.61904708,3562.2,3562.1,2.32843]
[1754311551306,44.95574,3562.7,3562.6,0.56135]
[1754311551510,65.25330398,3562.7,3562.6,1.767]
[1754311552214,45.57596398,3562.7,3562.6,0.2033]
[1754311552422,64.37826398,3562.7,3562.6,1.767]
[1754311552711,41.17954196,3562.7,3562.6,1.767]
[1754311552912,60.29554196,3562.7,3562.6,1.767]
[1754311553116,61.34694196,3562.7,3562.6,1.767]
[1754311553318,60.6014,3562.7,3562.6,1.767]
[1754311554617,59.9889,3562.7,3562.6,1.767]
[1754311556114,59.55,3562.7,3562.6,1.767]
[1754311556316,40.434,3562.7,3562.6,1.767]
[1754311556809,59.55,3562.7,3562.6,1.767]
[1754311557010,40.434,3562.7,3562.6,1.767]
[1754311557206,59.549,3562.7,3562.6,1.767]
[1754311557411,60.3016,3562.7,3562.6,1.767]
[1754311558419,59.549,3562.7,3562.6,1.767]
[1754311558610,40.434,3562.7,3562.6,1.767]
[1754311558811,59.549,3562.7,3562.6,1.767]
[1754311559720,41.4854,3562.7,3562.6,1.767]
[1754311559921,60.5994,3562.7,3562.6,1.767]
[1754311560420,4.5264,3563.5,3563.4,0.56122]
[1754311560615,24.96055755,3563.5,3563.4,2.32822]
[1754311560912,24.96055755,3563.5,3563.4,1.767]
[1754311561113,24.96055755,3563.5,3563.4,0.7069]
[1754311561515,0.7061,3563.3,3563.2,1.26814]
[1754311561708,20.1338,3563.3,3563.2,1.26814]
[1754311561919,20.8715,3563.3,3563.2,1.26814]
[1754311562119,19.8201,3563.3,3563.2,2.32824]
[1754311562322,0.7061,3563.3,3563.2,2.32824]
[1754311562616,19.8201,3563.3,3563.2,2.32824]
[1754311562817,20.8715,3563.3,3563.2,2.32824]
[1754311563318,20.259,3563.3,3563.2,2.32824]
[1754311563513,19.8201,3563.3,3563.2,2.32824]
[1754311563718,20.8715,3563.3,3563.2,2.32824]
[1754311563916,1.7575,3563.3,3563.2,2.32824]
[1754311564518,20.8705,3563.3,3563.2,2.32824]
[1754311569424,20.8705,3563.3,3562.9,1.40323]
[1754311569425,2.31875,3563.2,3563.1,0.56126]
[1754311569824,1.7575,3563.2,3563.1,0.76456]
[1754311570024,1.7575,3563.2,3563.1,1.36656]
[1754311570322,1.7575,3563.2,3563.1,1.87016]
[1754311570525,1.7575,3563.2,3563.1,2.32506]
[1754311571022,19.3125,3563.2,3563.1,2.32506]
[1754311572226,0.2015,3563.2,3563.1,2.32506]
[1754311572426,1.7729,3563.5,3563.4,1.4538]
[1754311572630,40.421,3563.7,3563.6,0.6962]
[1754311572925,60.5897,3563.7,3563.6,1.7636]
[1754311573721,40.421,3563.7,3563.6,1.7636]
[1754311574027,59.532,3563.7,3563.6,1.7636]
[1754311574825,0.2122,3563.8,3563.7,0.6962]
[1754311575023,19.3222,3563.8,3563.7,1.7636]
[1754311575226,0.6787,3563.8,3563.7,1.7636]
[1754311575523,1.5759,3563.8,3563.7,1.7636]
[1754311575730,20.6859,3563.8,3563.7,1.7636]
[1754311576026,20.6859,3563.8,3563.7,2.32478]
[1754311576530,20.8829,3563.8,3563.7,2.32478]
[1754311577525,19.9243,3563.8,3563.7,2.32478]
[1754311577730,0.2122,3563.8,3563.7,2.32478]
[1754311578026,19.3222,3563.8,3563.7,2.32478]
[1754311578222,20.8829,3563.8,3563.7,2.32478]
[1754311579524,20.8829,3563.8,3563.7,0.56118]
[1754311579826,1.27642,3563.5,3563.4,0.56121]
[1754311580026,20.38442,3563.5,3563.4,0.56121]
[1754311580422,21.44212,3563.5,3563.4,0.56121]
[1754311580726,2.33414,3563.4,3563.3,0.56123]
[1754311580929,1.7729,3563.4,3563.3,0.56123]
[1754311582332,19.66922,3563.5,3562.8,1.40326]
[1754311582333,1.7729,3562.9,3562.8,0.56131]
[1754311582623,20.8809,3562.9,3562.8,0.56131]
[1754311582829,20.8809,3562.9,3562.8,1.25751]
[1754311583025,20.8809,3562.9,3562.8,2.32491]
[1754311583221,1.3064,3563.3,3563.2,1.25745]
[1754311583427,20.8809,3563.3,3563.2,2.32485]
[1754311583628,20.8809,3563.3,3563.2,1.25745]
[1754311583923,20.8809,3563.3,3563.2,0.85545]
[1754311584128,2.33415,3563.2,3563.1,0.56126]
[1754311584329,1.7729,3563.1,3563.0,0.56128]
[1754311584530,20.8809,3563.1,3563.0,0.56128]
[1754311587033,1.7729,3563.1,3563.0,1.56728]
[1754311587328,4.9807,3563.5,3563.4,2.32482]
[1754311587532,24.67550831,3563.5,3563.4,2.32482]
[1754311587832,24.97060831,3563.5,3563.4,2.32482]
[1754311589525,24.83517591,3563.5,3563.4,2.32482]
[1754311589927,24.83517591,3563.5,3563.4,1.25742]
[1754311590533,24.83517591,3563.5,3563.4,2.01502]
[1754311590734,24.83517591,3563.5,3563.4,2.32482]
[1754311591728,4.9807,3563.5,3563.4,2.32482]
[1754311591931,40.8795,3563.8,3563.7,1.82288]
[1754311592130,42.35179746,3563.8,3563.7,2.32478]
[1754311592334,61.32536409,3563.8,3563.7,2.32478]
[1754311592830,41.15866409,3563.8,3563.7,2.32478]
[1754311593031,60.26766409,3563.8,3563.7,2.32478]
[1754311593431,61.32536409,3563.8,3563.7,2.32478]
[1754311593738,42.21636409,3563.8,3563.7,2.32478]
[1754311593933,60.26766409,3563.8,3563.7,2.32478]
[1754311594235,61.32536409,3563.8,3563.7,2.32478]
[1754311594931,41.62516409,3563.8,3563.7,2.32478]
[1754311595133,59.522,3563.8,3563.7,2.32478]
[1754311596032,40.413,3563.8,3563.7,2.32478]
[1754311596238,59.521,3563.8,3563.7,2.32478]
[1754311597034,4.9807,3564.5,3564.4,1.86977]
[1754311597236,24.83424195,3564.5,3564.4,0.6962]
[1754311597533,0.56107,3564.4,3564.3,0.56107]
[1754311597738,1.2699,3564.3,3564.2,0.56109]
[1754311597939,20.8809,3564.3,3564.2,1.81209]
[1754311598135,20.8809,3564.3,3563.7,3.76897]
[1754311598136,1.06416,3563.8,3563.7,3.76897]
[1754311598331,20.85086,3563.8,3563.7,3.2078]
[1754311598535,1.1817,3563.7,3563.6,1.25738]
[1754311598739,1.7729,3563.7,3563.6,2.32478]
[1754311599236,1.7729,3563.7,3563.6,1.86988]
[1754311599435,1.7729,3563.7,3563.6,1.56718]
[1754311599835,1.7729,3563.7,3563.6,2.32478]
[1754311602935,1.7738,3564.2,3564.1,2.30821]
[1754311603142,21.6249766,3564.2,3564.1,2.30821]
[1754311603939,21.6249766,3564.2,3564.1,0.1946]
[1754311604337,21.6249766,3564.2,3564.0,0.56112]
[1754311604545,1.7738,3564.1,3564.0,2.30822]
[1754311606342,1.7738,3564.1,3564.0,0.56112]
[1754311606542,0.56115,3563.9,3563.8,0.56115]
[1754311606748,20.8798,3563.9,3563.8,0.75575]
[1754311607044,20.2572,3563.9,3563.8,2.30825]
[1754311607245,19.3117,3563.9,3563.8,2.30825]
[1754311607643,1.0221,3564.1,3564.0,0.56113]
[1754311607848,20.1331,3564.1,3564.0,2.30823]
[1754311608348,0.955,3564.3,3564.2,2.3082]
[1754311608547,1.7738,3564.5,3564.4,2.30817]
[1754311608742,20.8858,3564.5,3564.4,2.30817]
[1754311608944,2.51883421,3564.5,3564.4,2.30817]
[1754311609247,20.8858,3564.5,3564.4,2.30817]
[1754311609443,21.63083421,3564.5,3564.4,2.30817]
[1754311610141,2.51883421,3564.5,3564.4,2.30817]
[1754311610346,2.07469533,3564.7,3564.6,2.30813]
[1754311610549,21.62869533,3564.7,3564.6,2.30813]
[1754311611149,2.51869533,3564.7,3564.6,2.30813]
[1754311611346,21.62769533,3564.7,3564.6,2.30813]
[1754311611543,20.60319533,3564.7,3564.6,2.30813]
[1754311611851,21.62769533,3564.7,3564.6,2.30813]
[1754311612244,1.76699533,3564.7,3564.6,2.30813]
[1754311612451,20.05859533,3564.7,3564.6,2.30813]
[1754311612751,19.108,3564.7,3564.6,2.30813]
[1754311613250,40.412,3564.8,3564.7,1.7471]
[1754311613452,59.519,3564.8,3564.7,1.7471]
[1754311613846,60.5856,3564.8,3564.7,1.7471]
[1754311615251,40.412,3564.8,3564.7,1.7471]
[1754311615453,59.525,3564.8,3564.7,1.7471]
[1754311615655,60.5916,3564.8,3564.7,1.7471]
[1754311615848,59.525,3564.8,3564.7,1.7471]
[1754311616154,40.412,3564.8,3564.7,1.7471]
[1754311616354,59.521,3564.8,3564.7,1.7471]
[1754311616958,40.412,3564.8,3564.7,1.7471]
[1754311617257,60.5856,3564.8,3564.7,1.7471]
[1754311617754,60.2779,3564.8,3564.7,1.7471]
[1754311618256,41.1709,3564.8,3564.7,1.7471]
[1754311618457,60.5826,3564.8,3564.7,1.7471]
[1754311620257,59.516,3564.8,3564.7,1.7471]
[1754311620458,59.8237,3564.8,3564.7,1.7471]
[1754311620650,60.5826,3564.8,3564.7,1.7471]
[1754311621656,1.0,3565.0,3564.9,1.7471]
[1754311621956,20.102,3565.0,3564.9,4.9549]
[1754311622558,20.3077,3565.0,3564.9,4.9549]
[1754311622754,21.8758,3565.0,3564.9,4.9549]
[1754311622957,2.7738,3565.0,3564.9,4.9549]
[1754311623153,21.8748,3565.0,3564.9,4.9549]
[1754311624360,18.8748,3565.0,3564.9,4.9549]
[1754311624660,0.5576,3565.7,3565.6,0.94968]
[1754311624859,19.6586,3565.7,3565.6,0.5008]
[1754311625163,19.6586,3565.7,3565.6,0.3062]